[Event "Titled Tuesday Blitz March 08 Late 2022"]
[White "Fernandez Siles, Luis"]
[Black "Wieczorek, Oskar"]
[WhiteFideId "2209420"]
[BlackFideId "1133950"]
[WhiteElo "2346"]
[BlackElo "2661"]
[Result "1/2-1/2"]
[Round "01"]
[TimeControl "180+1"]
[Date "2022.03.09"]
[WhiteClock "0:00:22"]
[BlackClock "0:00:15"]

1. e4 {[%clk 0:02:30]}  c5 {[%clk 0:02:54]} 2. Nf3 {[%clk 0:02:30]}  g6 {[%clk 0:02:51]} 3. d4 {[%clk 0:02:26]}  cxd4 {[%clk 0:02:52]} 4. Nxd4 {[%clk 0:02:27]}  Nc6 {[%clk 0:02:49]} 5. c4 {[%clk 0:02:26]}  Nf6 {[%clk 0:02:49]} 6. Nc3 {[%clk 0:02:25]}  d6 {[%clk 0:02:50]} 7. Be2 {[%clk 0:02:25]}  Nxd4 {[%clk 0:02:50]} 8. Qxd4 {[%clk 0:02:25]}  Bg7 {[%clk 0:02:50]} 9. Bg5 {[%clk 0:02:25]}  O-O {[%clk 0:02:49]} 10. Qd2 {[%clk 0:02:25]}  Be6 {[%clk 0:02:47]} 11. f3 {[%clk 0:02:22]}  a6 {[%clk 0:02:43]} 12. Rc1 {[%clk 0:02:14]}  Rc8 {[%clk 0:02:17]} 13. b3 {[%clk 0:02:13]}  Qa5 {[%clk 0:02:15]} 14. Nd5 {[%clk 0:01:57]}  Qxd2+ {[%clk 0:02:16]} 15. Kxd2 {[%clk 0:01:56]}  Rfe8 {[%clk 0:02:03]} 16. Nxf6+ {[%clk 0:01:46]}  Bxf6 {[%clk 0:02:03]} 17. Bxf6 {[%clk 0:01:46]}  exf6 {[%clk 0:02:04]} 18. g4 {[%clk 0:01:37]}  Kf8 {[%clk 0:02:03]} 19. h4 {[%clk 0:01:35]}  Ke7 {[%clk 0:01:58]} 20. h5 {[%clk 0:01:36]}  g5 {[%clk 0:01:48]} 21. Ke3 {[%clk 0:01:34]}  h6 {[%clk 0:01:46]} 22. Rhd1 {[%clk 0:01:33]}  Rc6 {[%clk 0:01:46]} 23. Rd3 {[%clk 0:01:21]}  b5 {[%clk 0:01:43]} 24. Rdc3 {[%clk 0:01:21]}  b4 {[%clk 0:01:29]} 25. R3c2 {[%clk 0:01:13]}  a5 {[%clk 0:01:08]} 26. Kd4 {[%clk 0:01:06]}  Ra8 {[%clk 0:01:00]} 27. c5 {[%clk 0:01:04]}  dxc5+ {[%clk 0:00:57]} 28. Rxc5 {[%clk 0:01:04]}  Rxc5 {[%clk 0:00:23]} 29. Rxc5 {[%clk 0:01:05]}  a4 {[%clk 0:00:23]} 30. Bc4 {[%clk 0:01:00]}  Rd8+ {[%clk 0:00:17]} 31. Bd5 {[%clk 0:00:59]}  axb3 {[%clk 0:00:13]} 32. axb3 {[%clk 0:00:58]}  Rb8 {[%clk 0:00:09]} 33. Kc4 {[%clk 0:00:56]}  Kd6 {[%clk 0:00:10]} 34. Rb5 {[%clk 0:00:56]}  Rc8+ {[%clk 0:00:10]} 35. Kd4 {[%clk 0:00:56]}  Rc3 {[%clk 0:00:09]} 36. Rb6+ {[%clk 0:00:55]}  Kc7 {[%clk 0:00:08]} 37. Rxb4 {[%clk 0:00:56]}  Rxf3 {[%clk 0:00:08]} 38. Rb7+ {[%clk 0:00:51]}  Kd6 {[%clk 0:00:08]} 39. b4 {[%clk 0:00:40]}  Bxd5 {[%clk 0:00:06]} 40. exd5 {[%clk 0:00:38]}  Rf4+ {[%clk 0:00:07]} 41. Kc3 {[%clk 0:00:37]}  Rxg4 {[%clk 0:00:06]} 42. Rxf7 {[%clk 0:00:37]}  Rf4 {[%clk 0:00:07]} 43. Rh7 {[%clk 0:00:37]}  Kxd5 {[%clk 0:00:06]} 44. Rxh6 {[%clk 0:00:37]}  Rf3+ {[%clk 0:00:06]} 45. Kb2 {[%clk 0:00:36]}  Kc4 {[%clk 0:00:06]} 46. Rg6 {[%clk 0:00:33]}  Kxb4 {[%clk 0:00:06]} 47. h6 {[%clk 0:00:33]}  Rf2+ {[%clk 0:00:07]} 48. Kc1 {[%clk 0:00:34]}  Kc4 {[%clk 0:00:05]} 49. h7 {[%clk 0:00:32]}  Rh2 {[%clk 0:00:05]} 50. Rxf6 {[%clk 0:00:33]}  Rxh7 {[%clk 0:00:05]} 51. Kd2 {[%clk 0:00:32]}  Kd4 {[%clk 0:00:05]} 52. Rg6 {[%clk 0:00:31]}  Rh5 {[%clk 0:00:05]} 53. Ke2 {[%clk 0:00:31]}  Ke4 {[%clk 0:00:06]} 54. Kf2 {[%clk 0:00:32]}  Kf5 {[%clk 0:00:05]} 55. Rg8 {[%clk 0:00:31]}  Rh7 {[%clk 0:00:05]} 56. Ra8 {[%clk 0:00:30]}  Rb7 {[%clk 0:00:05]} 57. Ra1 {[%clk 0:00:30]}  Rb2+ {[%clk 0:00:03]} 58. Kg1 {[%clk 0:00:30]}  Rb3 {[%clk 0:00:04]} 59. Rc1 {[%clk 0:00:30]}  Kg4 {[%clk 0:00:05]} 60. Rd1 {[%clk 0:00:30]}  Kg3 {[%clk 0:00:04]} 61. Rc1 {[%clk 0:00:31]}  g4 {[%clk 0:00:05]} 62. Rd1 {[%clk 0:00:31]}  Kh3 {[%clk 0:00:05]} 63. Re1 {[%clk 0:00:31]}  Rf3 {[%clk 0:00:05]} 64. Rd1 {[%clk 0:00:31]}  Kg3 {[%clk 0:00:06]} 65. Rc1 {[%clk 0:00:31]}  Kf4 {[%clk 0:00:07]} 66. Rb1 {[%clk 0:00:31]}  Re3 {[%clk 0:00:07]} 67. Ra1 {[%clk 0:00:31]}  Kf3 {[%clk 0:00:08]} 68. Rf1+ {[%clk 0:00:31]}  Ke2 {[%clk 0:00:08]} 69. Ra1 {[%clk 0:00:31]}  Rd3 {[%clk 0:00:08]} 70. Ra2+ {[%clk 0:00:30]}  Kf3 {[%clk 0:00:08]} 71. Ra1 {[%clk 0:00:31]}  Rd2 {[%clk 0:00:09]} 72. Rf1+ {[%clk 0:00:29]}  Kg3 {[%clk 0:00:09]} 73. Ra1 {[%clk 0:00:29]}  Rc2 {[%clk 0:00:08]} 74. Rb1 {[%clk 0:00:29]}  Rc3 {[%clk 0:00:08]} 75. Ra1 {[%clk 0:00:30]}  Kf3 {[%clk 0:00:09]} 76. Rb1 {[%clk 0:00:30]}  g3 {[%clk 0:00:09]} 77. Ra1 {[%clk 0:00:30]}  Re3 {[%clk 0:00:09]} 78. Rb1 {[%clk 0:00:30]}  Re2 {[%clk 0:00:09]} 79. Ra1 {[%clk 0:00:30]}  Kg4 {[%clk 0:00:10]} 80. Rb1 {[%clk 0:00:30]}  Kh3 {[%clk 0:00:10]} 81. Ra1 {[%clk 0:00:29]}  Rg2+ {[%clk 0:00:11]} 82. Kh1 {[%clk 0:00:29]}  Rh2+ {[%clk 0:00:11]} 83. Kg1 {[%clk 0:00:29]}  Rf2 {[%clk 0:00:12]} 84. Rb1 {[%clk 0:00:29]}  Rg2+ {[%clk 0:00:13]} 85. Kh1 {[%clk 0:00:28]}  Ra2 {[%clk 0:00:14]} 86. Kg1 {[%clk 0:00:28]}  Kg4 {[%clk 0:00:14]} 87. Rc1 {[%clk 0:00:27]}  Kf3 {[%clk 0:00:14]} 88. Rf1+ {[%clk 0:00:25]}  Kg4 {[%clk 0:00:14]} 89. Rb1 {[%clk 0:00:26]}  Ra8 {[%clk 0:00:14]} 90. Rc1 {[%clk 0:00:25]}  Re8 {[%clk 0:00:14]} 91. Rb1 {[%clk 0:00:25]}  Re2 {[%clk 0:00:15]} 92. Rc1 {[%clk 0:00:25]}  Kh3 {[%clk 0:00:15]} 93. Rb1 {[%clk 0:00:25]}  Rg2+ {[%clk 0:00:15]} 94. Kh1 {[%clk 0:00:24]}  Rh2+ {[%clk 0:00:16]} 95. Kg1 {[%clk 0:00:25]}  Rc2 {[%clk 0:00:17]} 96. Ra1 {[%clk 0:00:25]}  g2 {[%clk 0:00:14]} 97. Ra3+ {[%clk 0:00:24]}  Kg4 {[%clk 0:00:14]} 98. Ra4+ {[%clk 0:00:23]}  Kf3 {[%clk 0:00:14]} 99. Ra3+ {[%clk 0:00:23]}  Ke4 {[%clk 0:00:14]} 100. Rg3 {[%clk 0:00:22]}  Kf4 {[%clk 0:00:14]} 101. Rxg2 {[%clk 0:00:21]}  Rxg2+ {[%clk 0:00:15]} 102. Kxg2 {[%clk 0:00:22]} 1/2-1/2


[Site "https://www.chess.com"]

[Event "Titled Tuesday Blitz March 08 Late 2022"]
[White "Fiorito, Fabian"]
[Black "Rorrer, Grayson"]
[WhiteFideId "100200"]
[BlackFideId "30944996"]
[WhiteElo "2417"]
[BlackElo "2735"]
[Result "1-0"]
[Round "01"]
[TimeControl "180+1"]
[Date "2022.03.09"]
[WhiteClock "0:01:20"]
[BlackClock "0:00:05"]

1. d4 {[%clk 0:03:00]}  Nf6 {[%clk 0:02:59]} 2. Nc3 {[%clk 0:03:00]}  d5 {[%clk 0:02:58]} 3. Bf4 {[%clk 0:03:01]}  c5 {[%clk 0:02:56]} 4. e4 {[%clk 0:03:01]}  Nxe4 {[%clk 0:02:45]} 5. Bb5+ {[%clk 0:03:00]}  Nc6 {[%clk 0:02:42]} 6. Nxe4 {[%clk 0:03:00]}  dxe4 {[%clk 0:02:43]} 7. Ne2 {[%clk 0:03:00]}  Bg4 {[%clk 0:02:33]} 8. Bxc6+ {[%clk 0:02:57]}  bxc6 {[%clk 0:02:33]} 9. dxc5 {[%clk 0:02:58]}  Qa5+ {[%clk 0:02:21]} 10. c3 {[%clk 0:02:52]}  Qxc5 {[%clk 0:02:06]} 11. h3 {[%clk 0:02:52]}  Bh5 {[%clk 0:02:03]} 12. O-O {[%clk 0:02:52]}  e6 {[%clk 0:02:01]} 13. Qc2 {[%clk 0:02:52]}  Bg6 {[%clk 0:01:47]} 14. Be3 {[%clk 0:02:51]}  Qa5 {[%clk 0:01:41]} 15. Nf4 {[%clk 0:02:51]}  Be7 {[%clk 0:01:32]} 16. Nxg6 {[%clk 0:02:51]}  hxg6 {[%clk 0:01:33]} 17. Qxe4 {[%clk 0:02:51]}  Qd5 {[%clk 0:01:34]} 18. Qa4 {[%clk 0:02:45]}  O-O {[%clk 0:01:29]} 19. Rad1 {[%clk 0:02:45]}  Qf5 {[%clk 0:01:18]} 20. Rd7 {[%clk 0:02:42]}  Bc5 {[%clk 0:01:11]} 21. Qxc6 {[%clk 0:02:27]}  Bxe3 {[%clk 0:00:54]} 22. fxe3 {[%clk 0:02:27]}  Qe5 {[%clk 0:00:54]} 23. Rdxf7 {[%clk 0:02:25]}  Qxe3+ {[%clk 0:00:54]} 24. Kh1 {[%clk 0:02:25]}  Rac8 {[%clk 0:00:45]} 25. Qd7 {[%clk 0:02:25]}  Qe5 {[%clk 0:00:39]} 26. Qxa7 {[%clk 0:02:23]}  Ra8 {[%clk 0:00:32]} 27. Rxf8+ {[%clk 0:02:21]}  Rxf8 {[%clk 0:00:33]} 28. Rxf8+ {[%clk 0:02:21]}  Kxf8 {[%clk 0:00:34]} 29. Qf2+ {[%clk 0:02:17]}  Ke7 {[%clk 0:00:33]} 30. a4 {[%clk 0:02:15]}  Qd5 {[%clk 0:00:31]} 31. Kh2 {[%clk 0:02:11]}  Qc4 {[%clk 0:00:25]} 32. Qa7+ {[%clk 0:02:08]}  Kf8 {[%clk 0:00:22]} 33. Qb8+ {[%clk 0:02:05]}  Kf7 {[%clk 0:00:20]} 34. Qb4 {[%clk 0:02:04]}  Qc7+ {[%clk 0:00:20]} 35. g3 {[%clk 0:02:03]}  g5 {[%clk 0:00:19]} 36. Qd4 {[%clk 0:02:01]}  Qb7 {[%clk 0:00:17]} 37. b4 {[%clk 0:02:00]}  Qf3 {[%clk 0:00:17]} 38. Qd2 {[%clk 0:01:56]}  e5 {[%clk 0:00:15]} 39. a5 {[%clk 0:01:37]}  e4 {[%clk 0:00:15]} 40. a6 {[%clk 0:01:29]}  e3 {[%clk 0:00:15]} 41. Qe1 {[%clk 0:01:29]}  e2 {[%clk 0:00:04]} 42. a7 {[%clk 0:01:30]}  Qf1 {[%clk 0:00:04]} 43. Qxf1+ {[%clk 0:01:26]}  exf1=Q {[%clk 0:00:05]} 44. a8=Q {[%clk 0:01:27]}  Qc4 {[%clk 0:00:05]} 45. Qf3+ {[%clk 0:01:27]}  Kg6 {[%clk 0:00:05]} 46. Kg2 {[%clk 0:01:23]}  Qa2+ {[%clk 0:00:05]} 47. Qf2 {[%clk 0:01:23]}  Qc4 {[%clk 0:00:06]} 48. Qd2 {[%clk 0:01:22]}  Qe4+ {[%clk 0:00:05]} 49. Kh2 {[%clk 0:01:23]}  Qc4 {[%clk 0:00:03]} 50. Qe3 {[%clk 0:01:19]}  Kh7 {[%clk 0:00:03]} 51. g4 {[%clk 0:01:17]}  Kg6 {[%clk 0:00:03]} 52. Kg3 {[%clk 0:01:18]}  Qc7+ {[%clk 0:00:03]} 53. Kf3 {[%clk 0:01:18]}  Qf7+ {[%clk 0:00:03]} 54. Ke2 {[%clk 0:01:18]}  Qa2+ {[%clk 0:00:03]} 55. Kd3 {[%clk 0:01:19]}  Qd5+ {[%clk 0:00:03]} 56. Qd4 {[%clk 0:01:19]}  Qf3+ {[%clk 0:00:04]} 57. Kc4 {[%clk 0:01:19]}  Qc6+ {[%clk 0:00:04]} 58. Qc5 {[%clk 0:01:19]}  Qe4+ {[%clk 0:00:04]} 59. Kb5 {[%clk 0:01:20]}  Qb7+ {[%clk 0:00:05]} 60. Qb6+ {[%clk 0:01:20]} 1-0


[Site "https://www.chess.com"]

[Event "Titled Tuesday Blitz March 08 Late 2022"]
[White "Hollan, Martin"]
[Black "Curtis, John"]
[WhiteFideId "360937"]
[BlackFideId "3200256"]
[WhiteElo "2468"]
[BlackElo "2203"]
[Result "1-0"]
[Round "01"]
[TimeControl "180+1"]
[Date "2022.03.09"]
[WhiteClock "0:00:18"]
[BlackClock "0:00:01"]

1. e4 {[%clk 0:03:00]}  c5 {[%clk 0:02:49]} 2. Nf3 {[%clk 0:03:00]}  d6 {[%clk 0:02:47]} 3. d4 {[%clk 0:03:00]}  cxd4 {[%clk 0:02:47]} 4. Nxd4 {[%clk 0:03:01]}  Nf6 {[%clk 0:02:47]} 5. Nc3 {[%clk 0:03:01]}  e5 {[%clk 0:02:46]} 6. Nb3 {[%clk 0:03:00]}  Be6 {[%clk 0:02:45]} 7. Bg5 {[%clk 0:02:59]}  Nbd7 {[%clk 0:02:43]} 8. Nd5 {[%clk 0:02:54]}  Bxd5 {[%clk 0:02:42]} 9. exd5 {[%clk 0:02:54]}  Be7 {[%clk 0:02:42]} 10. h4 {[%clk 0:02:44]}  a6 {[%clk 0:02:27]} 11. c4 {[%clk 0:02:38]}  Rc8 {[%clk 0:02:26]} 12. Rc1 {[%clk 0:02:37]}  Nc5 {[%clk 0:02:13]} 13. Nxc5 {[%clk 0:02:36]}  dxc5 {[%clk 0:02:04]} 14. b3 {[%clk 0:02:28]}  O-O {[%clk 0:01:58]} 15. Bd3 {[%clk 0:02:27]}  Ne8 {[%clk 0:01:55]} 16. Qh5 {[%clk 0:02:14]}  f5 {[%clk 0:01:52]} 17. Bxe7 {[%clk 0:01:48]}  Qxe7 {[%clk 0:01:47]} 18. Bxf5 {[%clk 0:01:48]}  g6 {[%clk 0:01:45]} 19. Bxg6 {[%clk 0:01:47]}  hxg6 {[%clk 0:01:41]} 20. Qxg6+ {[%clk 0:01:46]}  Ng7 {[%clk 0:01:25]} 21. h5 {[%clk 0:01:45]}  Qf6 {[%clk 0:01:23]} 22. Qxf6 {[%clk 0:01:37]}  Rxf6 {[%clk 0:01:23]} 23. Rc3 {[%clk 0:01:30]}  Ne8 {[%clk 0:01:19]} 24. Rg3+ {[%clk 0:01:25]}  Kh7 {[%clk 0:01:18]} 25. Rg5 {[%clk 0:01:24]}  e4 {[%clk 0:01:07]} 26. Re5 {[%clk 0:01:17]}  Nd6 {[%clk 0:01:07]} 27. Re7+ {[%clk 0:01:04]}  Rf7 {[%clk 0:01:07]} 28. Rxf7+ {[%clk 0:01:04]}  Nxf7 {[%clk 0:01:06]} 29. Rh4 {[%clk 0:01:04]}  Nd6 {[%clk 0:01:06]} 30. Rf4 {[%clk 0:01:00]}  Rd8 {[%clk 0:00:59]} 31. g4 {[%clk 0:00:57]}  Kh6 {[%clk 0:00:58]} 32. Rf6+ {[%clk 0:00:57]}  Kg5 {[%clk 0:00:58]} 33. Rg6+ {[%clk 0:00:57]}  Kf4 {[%clk 0:00:56]} 34. Rg7 {[%clk 0:00:56]}  b5 {[%clk 0:00:56]} 35. cxb5 {[%clk 0:00:55]}  axb5 {[%clk 0:00:56]} 36. h6 {[%clk 0:00:54]}  c4 {[%clk 0:00:54]} 37. h7 {[%clk 0:00:52]}  Rh8 {[%clk 0:00:50]} 38. bxc4 {[%clk 0:00:52]}  bxc4 {[%clk 0:00:48]} 39. a4 {[%clk 0:00:51]}  e3 {[%clk 0:00:42]} 40. fxe3+ {[%clk 0:00:49]}  Kxe3 {[%clk 0:00:42]} 41. g5 {[%clk 0:00:46]}  Ne4 {[%clk 0:00:27]} 42. g6 {[%clk 0:00:41]}  Rb8 {[%clk 0:00:27]} 43. Kf1 {[%clk 0:00:41]}  c3 {[%clk 0:00:20]} 44. Rc7 {[%clk 0:00:29]}  Kd4 {[%clk 0:00:11]} 45. g7 {[%clk 0:00:27]}  Nc5 {[%clk 0:00:09]} 46. h8=Q {[%clk 0:00:21]}  c2 {[%clk 0:00:04]} 47. g8=Q+ {[%clk 0:00:21]}  Ke3 {[%clk 0:00:01]} 48. Qc3+ {[%clk 0:00:18]} 1-0


[Site "https://www.chess.com"]

[Event "Titled Tuesday Blitz March 08 Late 2022"]
[White "Ishbaev, Alibek"]
[Black "Maltsevskaya, Aleksandra"]
[WhiteFideId "14205017"]
[BlackFideId "24174041"]
[WhiteElo "2312"]
[BlackElo "2241"]
[Result "1-0"]
[Round "01"]
[TimeControl "180+1"]
[Date "2022.03.09"]
[WhiteClock "0:00:03"]
[BlackClock "0:00:10"]

1. c4 {[%clk 0:02:56]}  Nf6 {[%clk 0:02:58]} 2. Nc3 {[%clk 0:02:55]}  g6 {[%clk 0:02:57]} 3. e4 {[%clk 0:02:56]}  Bg7 {[%clk 0:02:58]} 4. g3 {[%clk 0:02:55]}  d6 {[%clk 0:02:58]} 5. Bg2 {[%clk 0:02:55]}  O-O {[%clk 0:02:58]} 6. Nge2 {[%clk 0:02:55]}  e5 {[%clk 0:02:59]} 7. O-O {[%clk 0:02:55]}  Nbd7 {[%clk 0:03:00]} 8. d3 {[%clk 0:02:54]}  a6 {[%clk 0:02:59]} 9. h3 {[%clk 0:02:53]}  Rb8 {[%clk 0:02:59]} 10. Be3 {[%clk 0:02:53]}  b5 {[%clk 0:03:00]} 11. Qd2 {[%clk 0:02:54]}  b4 {[%clk 0:02:57]} 12. Nd1 {[%clk 0:02:53]}  c5 {[%clk 0:02:56]} 13. Bh6 {[%clk 0:02:52]}  a5 {[%clk 0:02:56]} 14. Bxg7 {[%clk 0:02:50]}  Kxg7 {[%clk 0:02:57]} 15. Ne3 {[%clk 0:02:49]}  a4 {[%clk 0:02:57]} 16. f4 {[%clk 0:02:49]}  a3 {[%clk 0:02:57]} 17. b3 {[%clk 0:02:48]}  Bb7 {[%clk 0:02:54]} 18. Rf2 {[%clk 0:02:47]}  Ne8 {[%clk 0:02:51]} 19. f5 {[%clk 0:02:45]}  f6 {[%clk 0:02:51]} 20. h4 {[%clk 0:02:44]}  Rh8 {[%clk 0:02:48]} 21. Raf1 {[%clk 0:02:38]}  Qe7 {[%clk 0:02:48]} 22. g4 {[%clk 0:02:31]}  Bc6 {[%clk 0:02:43]} 23. Bh3 {[%clk 0:02:28]}  Rb7 {[%clk 0:02:34]} 24. g5 {[%clk 0:02:22]}  fxg5 {[%clk 0:02:34]} 25. f6+ {[%clk 0:02:15]}  Ndxf6 {[%clk 0:02:31]} 26. hxg5 {[%clk 0:02:15]}  Nh5 {[%clk 0:02:31]} 27. Nd5 {[%clk 0:02:09]}  Bxd5 {[%clk 0:02:31]} 28. cxd5 {[%clk 0:02:09]}  h6 {[%clk 0:02:19]} 29. Be6 {[%clk 0:01:40]}  Qxg5+ {[%clk 0:02:13]} 30. Qxg5 {[%clk 0:01:40]}  hxg5 {[%clk 0:02:14]} 31. Rf7+ {[%clk 0:01:40]}  Rxf7 {[%clk 0:02:14]} 32. Rxf7+ {[%clk 0:01:41]}  Kh6 {[%clk 0:02:14]} 33. Bd7 {[%clk 0:01:12]}  Nef6 {[%clk 0:02:12]} 34. Kf2 {[%clk 0:01:07]}  c4 {[%clk 0:01:57]} 35. dxc4 {[%clk 0:00:41]}  Nxe4+ {[%clk 0:01:48]} 36. Ke3 {[%clk 0:00:41]}  Nc5 {[%clk 0:01:45]} 37. Bg4 {[%clk 0:00:37]}  Nf4 {[%clk 0:01:42]} 38. Ng3 {[%clk 0:00:33]}  Nxb3 {[%clk 0:01:34]} 39. axb3 {[%clk 0:00:19]}  Ra8 {[%clk 0:01:33]} 40. Ne4 {[%clk 0:00:20]}  Nh5 {[%clk 0:01:20]} 41. Rf1 {[%clk 0:00:14]}  a2 {[%clk 0:01:18]} 42. Ra1 {[%clk 0:00:14]}  Nf4 {[%clk 0:01:18]} 43. Nf2 {[%clk 0:00:11]}  Ra3 {[%clk 0:01:17]} 44. Bd1 {[%clk 0:00:09]}  g4 {[%clk 0:00:48]} 45. Nxg4+ {[%clk 0:00:09]}  Kg5 {[%clk 0:00:49]} 46. Nf2 {[%clk 0:00:09]}  Kf6 {[%clk 0:00:41]} 47. Nd3 {[%clk 0:00:07]}  Nxd3 {[%clk 0:00:24]} 48. Kxd3 {[%clk 0:00:08]}  Kf5 {[%clk 0:00:24]} 49. c5 {[%clk 0:00:05]}  dxc5 {[%clk 0:00:24]} 50. Kc4 {[%clk 0:00:06]}  e4 {[%clk 0:00:25]} 51. Kxc5 {[%clk 0:00:06]}  e3 {[%clk 0:00:25]} 52. d6 {[%clk 0:00:06]}  Ke6 {[%clk 0:00:21]} 53. Bg4+ {[%clk 0:00:06]}  Kf7 {[%clk 0:00:22]} 54. d7 {[%clk 0:00:05]}  Ke7 {[%clk 0:00:21]} 55. Kxb4 {[%clk 0:00:05]}  Ra8 {[%clk 0:00:17]} 56. Kc3 {[%clk 0:00:04]}  e2 {[%clk 0:00:11]} 57. Bxe2 {[%clk 0:00:03]}  Kxd7 {[%clk 0:00:10]} 58. Kb2 {[%clk 0:00:04]}  Re8 {[%clk 0:00:08]} 59. Bb5+ {[%clk 0:00:03]}  Kd6 {[%clk 0:00:09]} 60. Bxe8 {[%clk 0:00:04]}  Ke7 {[%clk 0:00:10]} 61. Bxg6 {[%clk 0:00:03]} 1-0


[Site "https://www.chess.com"]

[Event "Titled Tuesday Blitz March 08 Late 2022"]
[White "Iskusnyh, Sergei"]
[Black "Kujawski, Adam"]
[WhiteFideId "4120027"]
[BlackFideId "1100920"]
[WhiteElo "2634"]
[BlackElo "2324"]
[Result "0-1"]
[Round "01"]
[TimeControl "180+1"]
[Date "2022.03.09"]
[WhiteClock "0:00:03"]
[BlackClock "0:00:37"]

1. d4 {[%clk 0:02:51]}  Nf6 {[%clk 0:02:42]} 2. c4 {[%clk 0:02:50]}  e6 {[%clk 0:02:40]} 3. g3 {[%clk 0:02:49]}  c5 {[%clk 0:02:39]} 4. Nf3 {[%clk 0:02:48]}  cxd4 {[%clk 0:02:38]} 5. Nxd4 {[%clk 0:02:49]}  d5 {[%clk 0:02:37]} 6. Bg2 {[%clk 0:02:46]}  e5 {[%clk 0:02:36]} 7. Nf3 {[%clk 0:02:46]}  d4 {[%clk 0:02:35]} 8. O-O {[%clk 0:02:45]}  Nc6 {[%clk 0:02:35]} 9. e3 {[%clk 0:02:46]}  Bc5 {[%clk 0:02:30]} 10. exd4 {[%clk 0:02:22]}  exd4 {[%clk 0:02:29]} 11. Bg5 {[%clk 0:01:54]}  h6 {[%clk 0:02:18]} 12. Bxf6 {[%clk 0:01:53]}  Qxf6 {[%clk 0:02:18]} 13. Nbd2 {[%clk 0:01:53]}  O-O {[%clk 0:02:14]} 14. Ne4 {[%clk 0:01:50]}  Qe7 {[%clk 0:02:11]} 15. Re1 {[%clk 0:01:44]}  Be6 {[%clk 0:01:59]} 16. Rc1 {[%clk 0:01:30]}  Bb4 {[%clk 0:01:49]} 17. Re2 {[%clk 0:01:25]}  Rfd8 {[%clk 0:01:48]} 18. Qd3 {[%clk 0:01:07]}  Bg4 {[%clk 0:01:30]} 19. a3 {[%clk 0:00:50]}  Bxf3 {[%clk 0:01:25]} 20. Qxf3 {[%clk 0:00:44]}  Ba5 {[%clk 0:01:08]} 21. b4 {[%clk 0:00:40]}  Bc7 {[%clk 0:01:08]} 22. Nc5 {[%clk 0:00:37]}  Qg5 {[%clk 0:01:07]} 23. Rd1 {[%clk 0:00:31]}  Ne5 {[%clk 0:00:59]} 24. Qxb7 {[%clk 0:00:19]}  d3 {[%clk 0:00:56]} 25. Re4 {[%clk 0:00:16]}  Qh5 {[%clk 0:00:53]} 26. f3 {[%clk 0:00:08]}  Bd6 {[%clk 0:00:46]} 27. g4 {[%clk 0:00:07]}  Qh4 {[%clk 0:00:40]} 28. Qa6 {[%clk 0:00:03]}  d2 {[%clk 0:00:37]} 29. Nb7 {[%clk 0:00:03]}  Nxf3+ {[%clk 0:00:37]} 0-1


[Site "https://www.chess.com"]

[Event "Titled Tuesday Blitz March 08 Late 2022"]
[White "Jaferian, Koosha"]
[Black "Osmonbekov, Talaibek"]
[WhiteFideId "12507440"]
[BlackFideId "2017253"]
[WhiteElo "2030"]
[BlackElo "2135"]
[Result "1-0"]
[Round "01"]
[TimeControl "180+1"]
[Date "2022.03.09"]
[WhiteClock "0:01:51"]
[BlackClock "0:00:02"]

1. Nf3 {[%clk 0:03:00]}  f5 {[%clk 0:02:58]} 2. b3 {[%clk 0:02:59]}  Nf6 {[%clk 0:02:57]} 3. Bb2 {[%clk 0:03:00]}  d6 {[%clk 0:02:57]} 4. d4 {[%clk 0:03:00]}  e6 {[%clk 0:02:58]} 5. g3 {[%clk 0:03:00]}  Be7 {[%clk 0:02:58]} 6. Bg2 {[%clk 0:03:01]}  O-O {[%clk 0:02:59]} 7. O-O {[%clk 0:03:01]}  a5 {[%clk 0:02:59]} 8. c4 {[%clk 0:03:02]}  Qe8 {[%clk 0:02:57]} 9. Nbd2 {[%clk 0:03:02]}  Bd8 {[%clk 0:02:50]} 10. Ne1 {[%clk 0:02:49]}  e5 {[%clk 0:02:49]} 11. e3 {[%clk 0:02:49]}  Na6 {[%clk 0:02:41]} 12. dxe5 {[%clk 0:02:40]}  dxe5 {[%clk 0:02:41]} 13. Nd3 {[%clk 0:02:41]}  e4 {[%clk 0:02:35]} 14. Nf4 {[%clk 0:02:41]}  g5 {[%clk 0:02:23]} 15. Ne2 {[%clk 0:02:38]}  Nb4 {[%clk 0:02:03]} 16. Nd4 {[%clk 0:02:34]}  Nd3 {[%clk 0:01:50]} 17. Bc3 {[%clk 0:02:32]}  g4 {[%clk 0:01:25]} 18. Ne2 {[%clk 0:02:28]}  c6 {[%clk 0:01:22]} 19. Nf4 {[%clk 0:02:27]}  Ne5 {[%clk 0:01:11]} 20. Qc2 {[%clk 0:02:25]}  Bc7 {[%clk 0:01:07]} 21. Qb2 {[%clk 0:02:24]}  Nfd7 {[%clk 0:00:44]} 22. Rfd1 {[%clk 0:02:18]}  Nc5 {[%clk 0:00:44]} 23. Nf1 {[%clk 0:02:16]}  Ncd3 {[%clk 0:00:40]} 24. Nxd3 {[%clk 0:02:16]}  Nxd3 {[%clk 0:00:40]} 25. Qc2 {[%clk 0:02:17]}  Be5 {[%clk 0:00:37]} 26. a3 {[%clk 0:02:04]}  Bxc3 {[%clk 0:00:34]} 27. Qxc3 {[%clk 0:02:05]}  Qe5 {[%clk 0:00:34]} 28. Qc2 {[%clk 0:02:04]}  Be6 {[%clk 0:00:33]} 29. Nd2 {[%clk 0:02:02]}  Rfd8 {[%clk 0:00:25]} 30. Bf1 {[%clk 0:01:58]}  Rd7 {[%clk 0:00:24]} 31. Ra2 {[%clk 0:01:57]}  Rad8 {[%clk 0:00:21]} 32. Nb1 {[%clk 0:01:57]}  Nc5 {[%clk 0:00:14]} 33. Rxd7 {[%clk 0:01:56]}  Rxd7 {[%clk 0:00:15]} 34. Nc3 {[%clk 0:01:56]}  Qd6 {[%clk 0:00:12]} 35. b4 {[%clk 0:01:56]}  axb4 {[%clk 0:00:11]} 36. axb4 {[%clk 0:01:56]}  Na6 {[%clk 0:00:11]} 37. b5 {[%clk 0:01:52]}  Nb4 {[%clk 0:00:11]} 38. Ra8+ {[%clk 0:01:52]}  Kf7 {[%clk 0:00:09]} 39. Qb2 {[%clk 0:01:51]}  c5 {[%clk 0:00:03]} 40. Nd5 {[%clk 0:01:50]}  Bxd5 {[%clk 0:00:02]} 41. cxd5 {[%clk 0:01:51]} 1-0


[Site "https://www.chess.com"]